[Event "Early-Titled-Tuesday-Blitz-March-19-2024"]
[Site "Chess.com"]
[Date "2024.03.19"]
[Round "6"]
[White "SuperPower2011"]
[Black "Seochesspie"]
[Result "0-1"]
[WhiteElo "2776"]
[BlackElo "2899"]
[TimeControl "180+1"]
[EndTime "9:07:20 PDT"]
[Termination "Seochesspie won on time"]

1. e4 {[%clk 0:03:00.9]} 1... c5 {[%clk 0:03:00.2]} 2. Nf3 {[%clk 0:03:00.8]}
2... d6 {[%clk 0:03:00.7]} 3. d4 {[%clk 0:03:00.5]} 3... cxd4 {[%clk 0:03:01]}
4. Nxd4 {[%clk 0:03:01.2]} 4... Nf6 {[%clk 0:03:01.6]} 5. Nc3 {[%clk 0:03:01.6]}
5... a6 {[%clk 0:03:01.9]} 6. h3 {[%clk 0:02:57.6]} 6... e5 {[%clk 0:03:01.3]}
7. Nde2 {[%clk 0:02:51.6]} 7... h5 {[%clk 0:03:00.1]} 8. Be3 {[%clk 0:02:50]}
8... Be6 {[%clk 0:02:58.9]} 9. Qd2 {[%clk 0:02:49.7]} 9... Nbd7 {[%clk
0:02:51.7]} 10. O-O-O {[%clk 0:02:49.5]} 10... b5 {[%clk 0:02:50]} 11. f3 {[%clk
0:02:38.7]} 11... Nb6 {[%clk 0:02:40]} 12. Bg5 {[%clk 0:02:28.3]} 12... Nc4
{[%clk 0:02:34.7]} 13. Qd3 {[%clk 0:02:26.1]} 13... Rc8 {[%clk 0:02:28.6]} 14.
Kb1 {[%clk 0:02:24.9]} 14... Be7 {[%clk 0:02:25.6]} 15. h4 {[%clk 0:02:17.1]}
15... Qc7 {[%clk 0:02:23.3]} 16. Ng3 {[%clk 0:02:15.4]} 16... g6 {[%clk
0:02:18.5]} 17. Nd5 {[%clk 0:01:51.2]} 17... Bxd5 {[%clk 0:02:02.8]} 18. exd5
{[%clk 0:01:51.1]} 18... O-O {[%clk 0:01:56.3]} 19. Be2 {[%clk 0:01:20.7]} 19...
a5 {[%clk 0:01:43.1]} 20. Bxf6 {[%clk 0:01:17.6]} 20... Bxf6 {[%clk 0:01:42.4]}
21. Ne4 {[%clk 0:01:18.3]} 21... Bg7 {[%clk 0:01:39]} 22. g4 {[%clk 0:01:18.6]}
22... a4 {[%clk 0:01:23.1]} 23. a3 {[%clk 0:00:30]} 23... f5 {[%clk 0:01:22.8]}
24. gxf5 {[%clk 0:00:27.9]} 24... gxf5 {[%clk 0:01:23.2]} 25. Ng5 {[%clk
0:00:27.7]} 25... e4 {[%clk 0:01:23.1]} 26. fxe4 {[%clk 0:00:23.4]} 26... Nxb2
{[%clk 0:01:21.1]} 27. Ne6 {[%clk 0:00:20]} 27... Nxd3 {[%clk 0:01:07.1]} 28.
Nxc7 {[%clk 0:00:20]} 28... Nf2 {[%clk 0:01:05.3]} 29. Ne6 {[%clk 0:00:18.7]}
29... Nxd1 {[%clk 0:01:05.1]} 30. Rxd1 {[%clk 0:00:16.3]} 30... fxe4 {[%clk
0:00:44.2]} 31. Nxf8 {[%clk 0:00:10.2]} 31... Kxf8 {[%clk 0:00:42.6]} 32. Bxh5
{[%clk 0:00:10.3]} 32... Rc3 {[%clk 0:00:34.4]} 33. Rf1+ {[%clk 0:00:10.9]}
33... Kg8 {[%clk 0:00:34.9]} 34. Bf7+ {[%clk 0:00:02.9]} 34... Kh7 {[%clk
0:00:31.6]} 35. Ka2 {[%clk 0:00:01]} 35... Rxc2+ {[%clk 0:00:30.9]} 36. Kb1
{[%clk 0:00:01.7]} 36... Rb2+ {[%clk 0:00:29.9]} 37. Kc1 {[%clk 0:00:01.8]}
37... Ra2 {[%clk 0:00:26.8]} 38. Rd1 {[%clk 0:00:01.8]} 38... Rxa3 {[%clk
0:00:23.9]} 39. Kc2 {[%clk 0:00:02]} 39... Ra2+ {[%clk 0:00:23.2]} 40. Kb1
{[%clk 0:00:01.7]} 40... Ra1+ {[%clk 0:00:23.3]} 41. Kc2 {[%clk 0:00:02.2]}
41... Ra2+ {[%clk 0:00:21]} 42. Kb1 {[%clk 0:00:02.1]} 42... Rb2+ {[%clk
0:00:21.4]} 43. Kc1 {[%clk 0:00:02.8]} 43... a3 {[%clk 0:00:21.6]} 44. h5 {[%clk
0:00:01.2]} 44... Bh6+ {[%clk 0:00:21.6]} 0-1

[Event "Early-Titled-Tuesday-Blitz-March-19-2024"]
[Site "Chess.com"]
[Date "2024.03.19"]
[Round "6"]
[White "jefferyx"]
[Black "Blitzstream"]
[Result "1-0"]
[WhiteElo "3088"]
[BlackElo "2827"]
[TimeControl "180+1"]
[EndTime "9:07:21 PDT"]
[Termination "jefferyx won on time"]

1. Nf3 {[%clk 0:03:00.9]} 1... d5 {[%clk 0:03:00]} 2. c4 {[%clk 0:03:00.9]} 2...
c6 {[%clk 0:03:00.1]} 3. d4 {[%clk 0:02:57.8]} 3... Nf6 {[%clk 0:03:00.5]} 4.
cxd5 {[%clk 0:02:58.1]} 4... cxd5 {[%clk 0:03:00.7]} 5. Nc3 {[%clk 0:02:58.8]}
5... Nc6 {[%clk 0:03:01.3]} 6. Bf4 {[%clk 0:02:59.4]} 6... Ne4 {[%clk
0:03:01.1]} 7. e3 {[%clk 0:02:53.8]} 7... Nxc3 {[%clk 0:03:00.9]} 8. bxc3 {[%clk
0:02:54.7]} 8... g6 {[%clk 0:03:01.5]} 9. Be2 {[%clk 0:02:41.4]} 9... Bg7 {[%clk
0:03:01.8]} 10. O-O {[%clk 0:02:41.8]} 10... O-O {[%clk 0:03:02.5]} 11. Nd2
{[%clk 0:02:37.8]} 11... e5 {[%clk 0:02:57.6]} 12. Bg3 {[%clk 0:02:37.9]} 12...
Bf5 {[%clk 0:02:48.3]} 13. a4 {[%clk 0:02:31]} 13... Rc8 {[%clk 0:02:43.2]} 14.
Nb3 {[%clk 0:02:29.7]} 14... exd4 {[%clk 0:02:05.4]} 15. cxd4 {[%clk 0:02:29.4]}
15... Nb4 {[%clk 0:02:05]} 16. a5 {[%clk 0:02:18.4]} 16... Nc2 {[%clk
0:01:41.9]} 17. Ra2 {[%clk 0:02:18.3]} 17... Nb4 {[%clk 0:01:35.3]} 18. Rb2
{[%clk 0:02:16]} 18... Qe7 {[%clk 0:00:56.3]} 19. Qd2 {[%clk 0:01:59.4]} 19...
b6 {[%clk 0:00:53.7]} 20. axb6 {[%clk 0:01:59.3]} 20... axb6 {[%clk 0:00:54.6]}
21. Nc1 {[%clk 0:01:55.4]} 21... Nc2 {[%clk 0:00:43.6]} 22. Rxb6 {[%clk
0:01:46.6]} 22... Qa7 {[%clk 0:00:43.6]} 23. Rb5 {[%clk 0:01:39.4]} 23... Rfd8
{[%clk 0:00:40.1]} 24. Bd3 {[%clk 0:01:38.4]} 24... Bxd3 {[%clk 0:00:36.9]} 25.
Nxd3 {[%clk 0:01:39.3]} 25... Qa4 {[%clk 0:00:33.5]} 26. Rc5 {[%clk 0:01:33.4]}
26... Na3 {[%clk 0:00:32]} 27. Ra1 {[%clk 0:01:29.7]} 27... Bf8 {[%clk
0:00:29.4]} 28. Qc1 {[%clk 0:01:25.8]} 28... Bxc5 {[%clk 0:00:26.7]} 29. Nxc5
{[%clk 0:01:26.7]} 29... Qc2 {[%clk 0:00:21.5]} 30. Qxa3 {[%clk 0:01:26]} 30...
h5 {[%clk 0:00:16.9]} 31. h4 {[%clk 0:01:25.6]} 31... Qf5 {[%clk 0:00:16.2]} 32.
Qb3 {[%clk 0:01:22.5]} 32... Qg4 {[%clk 0:00:15.5]} 33. Qb7 {[%clk 0:01:18.7]}
33... g5 {[%clk 0:00:15.4]} 34. Qe7 {[%clk 0:01:11.8]} 34... gxh4 {[%clk
0:00:12]} 35. Qxh4 {[%clk 0:01:11.7]} 35... Qxh4 {[%clk 0:00:11.5]} 36. Bxh4
{[%clk 0:01:12.6]} 36... Rd6 {[%clk 0:00:10.6]} 37. Ra7 {[%clk 0:01:08.2]} 37...
Kg7 {[%clk 0:00:10.6]} 38. Bg3 {[%clk 0:01:07.9]} 38... Rdc6 {[%clk 0:00:10.3]}
39. Rd7 {[%clk 0:01:07]} 39... Kg6 {[%clk 0:00:10.9]} 40. Rxd5 {[%clk
0:01:06.8]} 40... Ra8 {[%clk 0:00:11.7]} 41. Nd3 {[%clk 0:01:05.1]} 41... f6
{[%clk 0:00:11.9]} 42. Nf4+ {[%clk 0:01:04.6]} 42... Kg7 {[%clk 0:00:12.3]} 43.
Nxh5+ {[%clk 0:01:01.8]} 43... Kh6 {[%clk 0:00:12.8]} 44. Nf4 {[%clk 0:00:53]}
44... Kg7 {[%clk 0:00:11.4]} 45. Bh4 {[%clk 0:00:49.2]} 45... Rh8 {[%clk
0:00:11.2]} 46. g3 {[%clk 0:00:49.1]} 46... Rc1+ {[%clk 0:00:11.1]} 47. Kg2
{[%clk 0:00:49.5]} 47... Ra8 {[%clk 0:00:11.8]} 48. Nh5+ {[%clk 0:00:49.8]}
48... Kg6 {[%clk 0:00:11.8]} 49. Nxf6 {[%clk 0:00:49.2]} 49... Ra2 {[%clk
0:00:12.5]} 50. Ng4 {[%clk 0:00:48.1]} 50... Raa1 {[%clk 0:00:12.3]} 51. Rg5+
{[%clk 0:00:47.7]} 51... Kh7 {[%clk 0:00:12.9]} 52. Nf6+ {[%clk 0:00:42.9]}
52... Kh6 {[%clk 0:00:13.1]} 53. Rg8 {[%clk 0:00:41.3]} 53... Ra5 {[%clk
0:00:11.3]} 54. d5 {[%clk 0:00:35.8]} 54... Rg1+ {[%clk 0:00:08.8]} 55. Kf3
{[%clk 0:00:35.9]} 1-0

[Event "Early-Titled-Tuesday-Blitz-March-19-2024"]
[Site "Chess.com"]
[Date "2024.03.19"]
[Round "6"]
[White "RandomNoob04"]
[Black "Al_Shima"]
[Result "1-0"]
[WhiteElo "2669"]
[BlackElo "2466"]
[TimeControl "180+1"]
[EndTime "9:07:22 PDT"]
[Termination "RandomNoob04 won by resignation"]

1. e4 {[%clk 0:03:00.9]} 1... c6 {[%clk 0:02:59.2]} 2. d4 {[%clk 0:03:00]} 2...
d5 {[%clk 0:02:59.6]} 3. Nc3 {[%clk 0:03:00.8]} 3... dxe4 {[%clk 0:02:59.9]} 4.
Nxe4 {[%clk 0:03:01.7]} 4... Nf6 {[%clk 0:03:00.4]} 5. Ng5 {[%clk 0:03:02.4]}
5... h6 {[%clk 0:03:00]} 6. Nxf7 {[%clk 0:03:02.9]} 6... Kxf7 {[%clk 0:03:00.9]}
7. Nf3 {[%clk 0:03:03.6]} 7... e6 {[%clk 0:02:55.7]} 8. Bd3 {[%clk 0:03:03.6]}
8... c5 {[%clk 0:02:44.9]} 9. c3 {[%clk 0:03:00.4]} 9... Nc6 {[%clk 0:02:42.2]}
10. O-O {[%clk 0:03:00.3]} 10... cxd4 {[%clk 0:02:37]} 11. cxd4 {[%clk
0:03:01.2]} 11... Bd6 {[%clk 0:02:36.3]} 12. Re1 {[%clk 0:02:54.1]} 12... Qc7
{[%clk 0:02:31.6]} 13. Qe2 {[%clk 0:02:47.2]} 13... Rd8 {[%clk 0:02:08.8]} 14.
Bd2 {[%clk 0:02:38.9]} 14... Kg8 {[%clk 0:01:55.5]} 15. Rac1 {[%clk 0:02:38.5]}
15... Qf7 {[%clk 0:01:50.3]} 16. Ne5 {[%clk 0:02:32.6]} 16... Nxd4 {[%clk
0:01:17]} 17. Qe3 {[%clk 0:02:30.9]} 17... Bxe5 {[%clk 0:01:13.8]} 18. Qxe5
{[%clk 0:02:31.8]} 18... Nc6 {[%clk 0:01:14.2]} 19. Qg3 {[%clk 0:02:17.6]} 19...
Rxd3 {[%clk 0:00:51]} 20. Qxd3 {[%clk 0:02:16.3]} 20... e5 {[%clk 0:00:51.3]}
21. Bc3 {[%clk 0:02:10.7]} 21... Be6 {[%clk 0:00:44.9]} 22. Bxe5 {[%clk
0:02:04.4]} 22... Rd8 {[%clk 0:00:34.3]} 23. Qg3 {[%clk 0:01:56.5]} 23... Nxe5
{[%clk 0:00:32.5]} 24. Qxe5 {[%clk 0:01:55.6]} 24... Bd5 {[%clk 0:00:25.5]} 25.
Rc7 {[%clk 0:01:47.2]} 25... Qg6 {[%clk 0:00:19.9]} 26. Qg3 {[%clk 0:01:47.7]}
26... Qxg3 {[%clk 0:00:19.8]} 27. hxg3 {[%clk 0:01:48.6]} 27... Re8 {[%clk
0:00:15.7]} 28. Ree7 {[%clk 0:01:28.3]} 28... Rxe7 {[%clk 0:00:13.2]} 29. Rxe7
{[%clk 0:01:29.2]} 29... Kf8 {[%clk 0:00:12.8]} 30. Rc7 {[%clk 0:01:29.6]} 30...
Bc6 {[%clk 0:00:11.7]} 31. b4 {[%clk 0:01:28.6]} 31... Ne8 {[%clk 0:00:09.8]}
32. Rc8 {[%clk 0:01:28.1]} 32... Ke7 {[%clk 0:00:10.2]} 33. f3 {[%clk
0:01:02.9]} 33... Kd7 {[%clk 0:00:08.9]} 34. Ra8 {[%clk 0:01:03.5]} 34... a6
{[%clk 0:00:09]} 35. Kf2 {[%clk 0:01:03.9]} 35... Kc7 {[%clk 0:00:03.5]} 36. Ke3
{[%clk 0:01:01.5]} 36... Nd6 {[%clk 0:00:02.6]} 37. Rg8 {[%clk 0:00:59.6]} 37...
Kb6 {[%clk 0:00:03]} 38. g4 {[%clk 0:00:57.7]} 38... Kb5 {[%clk 0:00:03.3]} 39.
Rxg7 {[%clk 0:00:57.7]} 39... Kxb4 {[%clk 0:00:03.2]} 40. Rg6 {[%clk 0:00:58.3]}
40... Nc4+ {[%clk 0:00:03.4]} 41. Kd4 {[%clk 0:00:57.8]} 41... Na3 {[%clk
0:00:02]} 42. Rxh6 {[%clk 0:00:57.4]} 42... Nb5+ {[%clk 0:00:02.9]} 43. Ke5
{[%clk 0:00:56.9]} 43... Ka3 {[%clk 0:00:03.8]} 44. g5 {[%clk 0:00:56.9]} 44...
Nc3 {[%clk 0:00:01.3]} 45. Rxc6 {[%clk 0:00:55.6]} 45... bxc6 {[%clk 0:00:01.6]}
46. g6 {[%clk 0:00:56.2]} 46... Nd5 {[%clk 0:00:01.4]} 47. g7 {[%clk 0:00:38.3]}
47... Ne7 {[%clk 0:00:01.8]} 48. f4 {[%clk 0:00:39]} 48... c5 {[%clk 0:00:01.7]}
49. f5 {[%clk 0:00:39.6]} 49... c4 {[%clk 0:00:01.1]} 50. f6 {[%clk 0:00:39.4]}
50... Ng8 {[%clk 0:00:01.2]} 51. f7 {[%clk 0:00:37.8]} 51... Nh6 {[%clk
0:00:01.6]} 52. f8=Q+ {[%clk 0:00:37.8]} 52... Kb2 {[%clk 0:00:01.5]} 53. Qb4+
{[%clk 0:00:37.3]} 53... Kxa2 {[%clk 0:00:01.5]} 54. Qxc4+ {[%clk 0:00:38.2]}
1-0

[Event "Early-Titled-Tuesday-Blitz-March-19-2024"]
[Site "Chess.com"]
[Date "2024.03.19"]
[Round "6"]
[White "JimDiGrease"]
[Black "GMG"]
[Result "0-1"]
[WhiteElo "2979"]
[BlackElo "2799"]
[TimeControl "180+1"]
[EndTime "9:07:23 PDT"]
[Termination "GMG won on time"]

1. d4 {[%clk 0:03:00.9]} 1... d5 {[%clk 0:02:59.2]} 2. c4 {[%clk 0:03:00.1]}
2... e6 {[%clk 0:02:59.6]} 3. Nf3 {[%clk 0:03:00.1]} 3... Nf6 {[%clk 0:02:59.7]}
4. Qc2 {[%clk 0:03:00.8]} 4... c5 {[%clk 0:02:49.6]} 5. dxc5 {[%clk 0:03:00]}
5... Bxc5 {[%clk 0:02:45.6]} 6. cxd5 {[%clk 0:03:00.4]} 6... Qb6 {[%clk
0:02:43.1]} 7. e3 {[%clk 0:02:58]} 7... exd5 {[%clk 0:02:43.1]} 8. Nc3 {[%clk
0:02:57.9]} 8... Bd7 {[%clk 0:02:40.7]} 9. Be2 {[%clk 0:02:41.8]} 9... O-O
{[%clk 0:02:36.3]} 10. O-O {[%clk 0:02:41.6]} 10... Rc8 {[%clk 0:02:23.7]} 11.
Bd2 {[%clk 0:02:32.9]} 11... Bd6 {[%clk 0:02:04.5]} 12. Qb3 {[%clk 0:01:53.8]}
12... Qxb3 {[%clk 0:01:56]} 13. axb3 {[%clk 0:01:54.7]} 13... Nc6 {[%clk
0:01:56.3]} 14. Nb5 {[%clk 0:01:53.9]} 14... Bf8 {[%clk 0:01:53.6]} 15. Bc3
{[%clk 0:01:52.3]} 15... Ne4 {[%clk 0:01:51]} 16. Rfd1 {[%clk 0:01:43.6]} 16...
a6 {[%clk 0:01:50.9]} 17. Na3 {[%clk 0:01:02.1]} 17... Be6 {[%clk 0:01:40.5]}
18. Nc2 {[%clk 0:00:56.4]} 18... f6 {[%clk 0:01:30.8]} 19. Ncd4 {[%clk 0:00:51]}
19... Bf7 {[%clk 0:01:26]} 20. Rdc1 {[%clk 0:00:45.7]} 20... Nxc3 {[%clk
0:01:12.1]} 21. bxc3 {[%clk 0:00:44.3]} 21... Ne5 {[%clk 0:01:09.9]} 22. b4
{[%clk 0:00:40.3]} 22... Rc7 {[%clk 0:01:05.5]} 23. Nxe5 {[%clk 0:00:13.1]}
23... fxe5 {[%clk 0:01:05.4]} 24. Nf3 {[%clk 0:00:14]} 24... e4 {[%clk
0:01:00.3]} 25. Nd4 {[%clk 0:00:12.7]} 25... Re8 {[%clk 0:00:50.4]} 26. Rc2
{[%clk 0:00:12.4]} 26... g6 {[%clk 0:00:49.5]} 27. Rac1 {[%clk 0:00:12.8]} 27...
h5 {[%clk 0:00:48.8]} 28. g3 {[%clk 0:00:09.8]} 28... Rec8 {[%clk 0:00:47.8]}
29. Bf1 {[%clk 0:00:08.8]} 29... Bg7 {[%clk 0:00:43.5]} 30. Bh3 {[%clk
0:00:08.6]} 30... Re8 {[%clk 0:00:43.3]} 31. Kf1 {[%clk 0:00:06.2]} 31... Bxd4
{[%clk 0:00:37.4]} 32. cxd4 {[%clk 0:00:06.2]} 32... Rc4 {[%clk 0:00:36.7]} 33.
Rxc4 {[%clk 0:00:06.2]} 33... dxc4 {[%clk 0:00:37.6]} 34. Ke2 {[%clk 0:00:06.9]}
34... Bd5 {[%clk 0:00:36.1]} 35. Kd2 {[%clk 0:00:06.3]} 35... Rf8 {[%clk
0:00:35]} 36. Rf1 {[%clk 0:00:04.5]} 36... Kf7 {[%clk 0:00:31.6]} 37. Kc3 {[%clk
0:00:03.2]} 37... Ke7 {[%clk 0:00:31.8]} 38. f4 {[%clk 0:00:02.3]} 38... exf3
{[%clk 0:00:30.9]} 39. e4 {[%clk 0:00:03.2]} 39... Be6 {[%clk 0:00:23.6]} 40.
Bxe6 {[%clk 0:00:02.3]} 40... Kxe6 {[%clk 0:00:24.5]} 41. Kxc4 {[%clk 0:00:03]}
41... b6 {[%clk 0:00:22.6]} 42. h4 {[%clk 0:00:02.4]} 42... f2 {[%clk
0:00:18.6]} 43. Kd3 {[%clk 0:00:02.8]} 43... a5 {[%clk 0:00:18.8]} 44. bxa5
{[%clk 0:00:02.9]} 44... bxa5 {[%clk 0:00:19.7]} 45. Ke2 {[%clk 0:00:02.2]}
45... a4 {[%clk 0:00:20]} 0-1

[Event "Early-Titled-Tuesday-Blitz-March-19-2024"]
[Site "Chess.com"]
[Date "2024.03.19"]
[Round "6"]
[White "Szachulec75"]
[Black "MaxLeto"]
[Result "1-0"]
[WhiteElo "2241"]
[BlackElo "2496"]
[TimeControl "180+1"]
[EndTime "9:07:23 PDT"]
[Termination "Szachulec75 won by resignation"]

1. Nf3 {[%clk 0:02:54.8]} 1... d5 {[%clk 0:03:00.2]} 2. g3 {[%clk 0:02:53.8]}
2... c6 {[%clk 0:02:59.8]} 3. Bg2 {[%clk 0:02:54.5]} 3... Nf6 {[%clk 0:03:00.7]}
4. d3 {[%clk 0:02:54.5]} 4... Bf5 {[%clk 0:03:01.6]} 5. O-O {[%clk 0:02:54.5]}
5... e6 {[%clk 0:03:02.2]} 6. Nbd2 {[%clk 0:02:54.2]} 6... h6 {[%clk 0:03:02.5]}
7. Re1 {[%clk 0:02:51.5]} 7... Bh7 {[%clk 0:03:03.4]} 8. b3 {[%clk 0:02:51.4]}
8... Be7 {[%clk 0:03:04.3]} 9. Bb2 {[%clk 0:02:51.7]} 9... O-O {[%clk
0:03:05.2]} 10. e4 {[%clk 0:02:51.5]} 10... a5 {[%clk 0:03:05.2]} 11. a3 {[%clk
0:02:50.8]} 11... b5 {[%clk 0:03:04.8]} 12. Ne5 {[%clk 0:02:49.3]} 12... Nfd7
{[%clk 0:03:02.5]} 13. f4 {[%clk 0:02:47.4]} 13... Nxe5 {[%clk 0:03:01.7]} 14.
Bxe5 {[%clk 0:02:39.7]} 14... Nd7 {[%clk 0:03:02]} 15. Bb2 {[%clk 0:02:40]}
15... Qb6+ {[%clk 0:02:58.2]} 16. Kh1 {[%clk 0:02:39.1]} 16... Rfe8 {[%clk
0:02:42.5]} 17. Qe2 {[%clk 0:02:33.2]} 17... Rac8 {[%clk 0:02:40.9]} 18. h3
{[%clk 0:02:15.6]} 18... Bc5 {[%clk 0:02:36.4]} 19. Qg4 {[%clk 0:02:04.4]} 19...
Bd4 {[%clk 0:02:14.3]} 20. c3 {[%clk 0:02:00.6]} 20... f5 {[%clk 0:01:55.8]} 21.
Qe2 {[%clk 0:01:54.3]} 21... Bf2 {[%clk 0:01:51.6]} 22. Rf1 {[%clk 0:01:06.6]}
22... Bxg3 {[%clk 0:01:51.7]} 23. c4 {[%clk 0:01:01.4]} 23... bxc4 {[%clk
0:01:45]} 24. dxc4 {[%clk 0:00:59.9]} 24... e5 {[%clk 0:00:52.8]} 25. exf5
{[%clk 0:00:46.6]} 25... exf4 {[%clk 0:00:30.3]} 26. Qg4 {[%clk 0:00:43]} 26...
d4 {[%clk 0:00:30.8]} 27. Ne4 {[%clk 0:00:38]} 27... Ne5 {[%clk 0:00:27]} 28.
Qd1 {[%clk 0:00:34.6]} 28... c5 {[%clk 0:00:20.4]} 29. b4 {[%clk 0:00:31.4]}
29... axb4 {[%clk 0:00:19.5]} 30. axb4 {[%clk 0:00:31]} 30... Qxb4 {[%clk
0:00:19]} 31. Ba3 {[%clk 0:00:27.8]} 31... Qxc4 {[%clk 0:00:18.3]} 32. Nd6
{[%clk 0:00:28.3]} 32... Qc3 {[%clk 0:00:12.6]} 33. Nxe8 {[%clk 0:00:20.3]}
33... Rxe8 {[%clk 0:00:12.6]} 34. Qa4 {[%clk 0:00:17.1]} 34... Rf8 {[%clk
0:00:06.2]} 35. Rac1 {[%clk 0:00:17.3]} 35... Qe3 {[%clk 0:00:05.9]} 36. Bxc5
{[%clk 0:00:17]} 36... Rf6 {[%clk 0:00:03]} 37. Bxd4 {[%clk 0:00:16.7]} 37...
Bxf5 {[%clk 0:00:02.3]} 38. Bxe3 {[%clk 0:00:16.3]} 38... fxe3 {[%clk
0:00:02.7]} 39. Qb3+ {[%clk 0:00:15.3]} 39... Kh7 {[%clk 0:00:02.4]} 40. Qxe3
{[%clk 0:00:15.9]} 40... Bh4 {[%clk 0:00:01.4]} 41. Rxf5 {[%clk 0:00:14.3]}
41... Rxf5 {[%clk 0:00:01.5]} 42. Be4 {[%clk 0:00:15.2]} 42... g6 {[%clk
0:00:01.6]} 43. Bxf5 {[%clk 0:00:15]} 43... gxf5 {[%clk 0:00:02.5]} 44. Qxe5
{[%clk 0:00:15.2]} 1-0

[Event "Early-Titled-Tuesday-Blitz-March-19-2024"]
[Site "Chess.com"]
[Date "2024.03.19"]
[Round "6"]
[White "AlexandraSamaganova"]
[Black "Gabrielian_Artur"]
[Result "0-1"]
[WhiteElo "2298"]
[BlackElo "2785"]
[TimeControl "180+1"]
[EndTime "9:07:24 PDT"]
[Termination "Gabrielian_Artur won on time"]

1. c4 {[%clk 0:03:00.9]} 1... e5 {[%clk 0:02:59.2]} 2. Nc3 {[%clk 0:03:00.5]}
2... Nf6 {[%clk 0:02:57.2]} 3. Nf3 {[%clk 0:03:00.3]} 3... Nc6 {[%clk
0:02:57.1]} 4. a3 {[%clk 0:02:57.3]} 4... d5 {[%clk 0:02:53.9]} 5. cxd5 {[%clk
0:02:56.6]} 5... Nxd5 {[%clk 0:02:54.1]} 6. Qc2 {[%clk 0:02:55]} 6... Be7 {[%clk
0:02:52.8]} 7. e3 {[%clk 0:02:54.7]} 7... O-O {[%clk 0:02:50.4]} 8. Be2 {[%clk
0:02:50.1]} 8... Be6 {[%clk 0:02:48.8]} 9. O-O {[%clk 0:02:44.4]} 9... Nb6
{[%clk 0:02:45.1]} 10. b4 {[%clk 0:02:42.5]} 10... a6 {[%clk 0:02:44.3]} 11. Bb2
{[%clk 0:02:42]} 11... f6 {[%clk 0:02:37.8]} 12. Rfd1 {[%clk 0:02:38.8]} 12...
Qe8 {[%clk 0:02:37.1]} 13. d4 {[%clk 0:02:37.1]} 13... exd4 {[%clk 0:02:37.1]}
14. Nxd4 {[%clk 0:02:37.2]} 14... Nxd4 {[%clk 0:02:36.9]} 15. Rxd4 {[%clk
0:02:38.1]} 15... Qf7 {[%clk 0:02:34.6]} 16. Bf3 {[%clk 0:02:36]} 16... c6
{[%clk 0:02:34.2]} 17. Ne4 {[%clk 0:02:30.2]} 17... Rad8 {[%clk 0:02:29.5]} 18.
Nc5 {[%clk 0:02:26.2]} 18... Bxc5 {[%clk 0:02:26.9]} 19. Qxc5 {[%clk 0:02:22.6]}
19... Na4 {[%clk 0:02:26.3]} 20. Qc2 {[%clk 0:02:22.2]} 20... Nxb2 {[%clk
0:02:25.7]} 21. Qxb2 {[%clk 0:02:22.6]} 21... Rxd4 {[%clk 0:02:23.5]} 22. Qxd4
{[%clk 0:02:22.6]} 22... Bb3 {[%clk 0:02:20.5]} 23. Bd1 {[%clk 0:02:18.2]} 23...
Bd5 {[%clk 0:02:10.4]} 24. e4 {[%clk 0:02:10.5]} 24... Bxe4 {[%clk 0:01:42.1]}
25. Qc3 {[%clk 0:01:13.7]} 25... Bd5 {[%clk 0:01:36.4]} 26. Bc2 {[%clk
0:01:10.2]} 26... Re8 {[%clk 0:01:34]} 27. Rd1 {[%clk 0:01:02.4]} 27... Re5
{[%clk 0:01:27.1]} 28. f3 {[%clk 0:00:46.9]} 28... Qe7 {[%clk 0:01:24.2]} 29.
Qd3 {[%clk 0:00:33.7]} 29... g6 {[%clk 0:01:14.1]} 30. Kf2 {[%clk 0:00:31.4]}
30... Kg7 {[%clk 0:01:12.6]} 31. h4 {[%clk 0:00:30.6]} 31... a5 {[%clk 0:01:07]}
32. b5 {[%clk 0:00:24.8]} 32... Qc5+ {[%clk 0:01:06.1]} 33. Kg3 {[%clk
0:00:23.7]} 33... cxb5 {[%clk 0:00:56.1]} 34. Rb1 {[%clk 0:00:19.3]} 34... Bc6
{[%clk 0:00:49.8]} 35. Bb3 {[%clk 0:00:13.9]} 35... Qe7 {[%clk 0:00:39.9]} 36.
Qc3 {[%clk 0:00:10]} 36... Re3 {[%clk 0:00:33.8]} 37. Qxa5 {[%clk 0:00:07.7]}
37... Qe5+ {[%clk 0:00:33.5]} 38. Kf2 {[%clk 0:00:05.2]} 38... Re2+ {[%clk
0:00:32.1]} 39. Kf1 {[%clk 0:00:04.1]} 39... Rxg2 {[%clk 0:00:16.6]} 40. Kxg2
{[%clk 0:00:01.4]} 40... Qe2+ {[%clk 0:00:16.7]} 41. Kg1 {[%clk 0:00:01.5]}
41... Qe3+ {[%clk 0:00:17.1]} 42. Kh2 {[%clk 0:00:01.2]} 42... Qf2+ {[%clk
0:00:17.1]} 43. Kh3 {[%clk 0:00:01.3]} 43... Bd7+ {[%clk 0:00:17.1]} 0-1

[Event "Early-Titled-Tuesday-Blitz-March-19-2024"]
[Site "Chess.com"]
[Date "2024.03.19"]
[Round "6"]
[White "dropstoneDP"]
[Black "The_Machine04"]
[Result "1-0"]
[WhiteElo "2986"]
[BlackElo "2829"]
[TimeControl "180+1"]
[EndTime "9:07:25 PDT"]
[Termination "dropstoneDP won on time"]

1. e4 {[%clk 0:02:54.5]} 1... d6 {[%clk 0:02:59.3]} 2. d4 {[%clk 0:02:53]} 2...
Nf6 {[%clk 0:02:59.1]} 3. Nc3 {[%clk 0:02:53.3]} 3... e5 {[%clk 0:02:58.3]} 4.
Nf3 {[%clk 0:02:50.7]} 4... Nbd7 {[%clk 0:02:57.4]} 5. Be2 {[%clk 0:02:46.5]}
5... Be7 {[%clk 0:02:56.7]} 6. g4 {[%clk 0:02:46.4]} 6... Nxg4 {[%clk
0:02:42.7]} 7. Rg1 {[%clk 0:02:45.8]} 7... h5 {[%clk 0:02:37.2]} 8. h3 {[%clk
0:02:45.4]} 8... exd4 {[%clk 0:02:24.9]} 9. Nxd4 {[%clk 0:02:44.3]} 9... Nge5
{[%clk 0:02:17]} 10. Nf5 {[%clk 0:02:41.7]} 10... g6 {[%clk 0:02:12.5]} 11. Nxe7
{[%clk 0:02:41.6]} 11... Qxe7 {[%clk 0:02:11.4]} 12. Nd5 {[%clk 0:02:39.4]}
12... Qd8 {[%clk 0:02:11]} 13. Bg5 {[%clk 0:02:38.1]} 13... f6 {[%clk
0:02:10.4]} 14. Be3 {[%clk 0:02:38.7]} 14... c6 {[%clk 0:02:09.8]} 15. Nf4
{[%clk 0:02:37.7]} 15... Nf8 {[%clk 0:02:07.3]} 16. Qd2 {[%clk 0:02:16.3]} 16...
h4 {[%clk 0:01:50.3]} 17. O-O-O {[%clk 0:02:14.9]} 17... g5 {[%clk 0:01:50.4]}
18. Nh5 {[%clk 0:02:13.6]} 18... Bxh3 {[%clk 0:01:45.9]} 19. f4 {[%clk
0:02:10.8]} 19... gxf4 {[%clk 0:01:31.7]} 20. Nxf4 {[%clk 0:02:11.7]} 20... Be6
{[%clk 0:01:27.6]} 21. Rg7 {[%clk 0:02:09.9]} 21... Bf7 {[%clk 0:01:25.5]} 22.
Qb4 {[%clk 0:01:57.2]} 22... Qe7 {[%clk 0:01:05.4]} 23. Rxd6 {[%clk 0:01:34.9]}
23... h3 {[%clk 0:01:04.5]} 24. Bc5 {[%clk 0:01:35]} 24... h2 {[%clk 0:01:01.3]}
25. Rd1 {[%clk 0:01:35.1]} 25... Qc7 {[%clk 0:00:37]} 26. Bh5 {[%clk 0:01:07.6]}
26... a5 {[%clk 0:00:08.5]} 27. Qc3 {[%clk 0:00:31]} 27... Nd3+ {[%clk
0:00:06.3]} 28. Nxd3 {[%clk 0:00:18.2]} 28... Rxh5 {[%clk 0:00:06.7]} 29. Rh1
{[%clk 0:00:18.6]} 29... Ne6 {[%clk 0:00:05.3]} 30. Qxf6 {[%clk 0:00:18]} 30...
Nxg7 {[%clk 0:00:05.1]} 31. Qxg7 {[%clk 0:00:18.6]} 31... O-O-O {[%clk
0:00:05.1]} 32. Bf2 {[%clk 0:00:11.9]} 32... Rg8 {[%clk 0:00:05]} 33. Qd4 {[%clk
0:00:10.4]} 33... Qd7 {[%clk 0:00:04.8]} 34. Qa7 {[%clk 0:00:10]} 34... Qd6
{[%clk 0:00:04]} 35. e5 {[%clk 0:00:06.6]} 35... Qb8 {[%clk 0:00:01.7]} 36. Qxa5
{[%clk 0:00:06.2]} 36... Qc7 {[%clk 0:00:02]} 37. Bb6 {[%clk 0:00:05.3]} 37...
Rg1+ {[%clk 0:00:01.9]} 38. Kd2 {[%clk 0:00:05.9]} 1-0